bitfinex/quotes_ETHUSD_20250319
["timestamp","ask_amount","ask_price","bid_price","bid_amount"]
[1742386960656,4.15570971,2019.1,2018.9,4.95315]
[1742386961174,4.15570971,2019.1,2018.8,4.9534]
[1742386961349,4.15570971,2019.1,2018.8,4.95326]
[1742386961550,4.15570971,2019.1,2018.9,4.95317]
[1742386962370,5.42359041,2019.1,2018.8,4.95339]
[1742386962876,4.15570971,2018.9,2018.8,4.95339]
[1742386963083,4.95344,2018.8,2018.5,0.1191877]
[1742386963263,4.15570971,2018.7,2018.5,5.0733577]
[1742386963472,4.15570971,2018.7,2018.5,5.0731777]
[1742386964277,4.15570971,2018.7,2018.5,10.0271777]
[1742386964479,10.10062568,2018.7,2018.5,0.1191877]
[1742386964647,5.75992,2018.6,2018.5,0.1191877]
[1742386965054,6.30992,2018.6,2018.5,0.1191877]
[1742386965250,9.30992,2018.6,2018.5,0.1191877]
[1742386965551,17.61452728,2018.6,2018.5,0.1191877]
[1742386965750,23.73452728,2018.6,2018.5,0.1191877]
[1742386966383,23.73452728,2018.6,2017.5,4.95648]
[1742386966384,0.7672,2018.0,2017.5,4.95648]
[1742386966584,0.7672,2018.0,2017.4,0.7822]
[1742386966585,4.95616,2017.7,2017.4,0.7822]
[1742386966735,9.11228971,2017.6,2017.3,4.9571]
[1742386967180,9.11228971,2017.6,2017.2,10.71491]
[1742386967488,15.67237,2017.2,2016.7,4.95837]
[1742386967649,15.67237,2017.2,2016.6,0.8003]
[1742386967650,9.11367971,2017.0,2016.6,5.75909]
[1742386967850,0.7548,2017.5,2017.1,4.95761]
[1742386968059,0.97549834,2017.9,2017.6,4.9562]
[1742386968269,17.127,2017.8,2017.7,4.95613]
[1742386968469,17.127,2017.8,2017.6,4.9562]
[1742386968988,17.127,2017.8,2017.7,4.95613]
[1742386969284,5.62,2018.2,2017.6,1.067772]
[1742386969494,27.85919015,2018.4,2018.1,4.95505]
[1742386970077,27.85919015,2018.4,2018.1,4.95504]
[1742386970246,17.13,2018.4,2018.2,9.90951]
[1742386970460,17.13,2018.4,2018.3,4.95466]
[1742386970869,5.62,2018.8,2018.4,4.95424]
[1742386971080,8.06863015,2018.8,2018.5,4.95399]
[1742386971291,4.60919015,2018.6,2018.3,4.9546]
[1742386971593,4.95438,2018.5,2017.9,0.8116]
[1742386971888,0.785,2018.3,2018.0,4.9554]
[1742386972060,0.785,2018.3,2017.8,9.91158]
[1742386972266,4.60919015,2018.2,2017.8,4.9557]
[1742386972661,4.60919015,2018.2,2017.7,5.76792]
[1742386972662,0.785,2018.3,2017.7,0.8118]
[1742386972868,9.56370015,2018.4,2018.0,4.95528]
[1742386973079,9.56370015,2018.4,2017.9,4.95554]
[1742386973080,4.60919015,2018.2,2017.9,4.95554]
[1742386974107,11.08305987,2018.2,2017.8,9.91174]
[1742386974282,11.08305987,2018.2,2017.9,4.95562]
[1742386974283,4.60919015,2018.2,2017.9,4.95562]
[1742386974604,4.60919015,2018.2,2017.9,4.95553]
[1742386974791,4.60919015,2018.2,2017.9,4.95555]
[1742386974994,9.56420015,2018.2,2017.8,4.95587]
[1742386975312,4.95587,2017.8,2017.3,4.95696]
[1742386975464,4.60919015,2017.8,2017.3,4.95696]
[1742386975670,3.0,2017.8,2017.5,4.95658]
[1742386975982,4.60919015,2018.0,2017.8,4.95589]
[1742386976308,7.60919015,2018.0,2017.8,4.95589]
[1742386976499,7.60919015,2018.0,2017.6,5.76296]
[1742386976703,7.60919015,2018.0,2017.6,0.8066]
[1742386977026,7.60919015,2018.0,2017.7,4.95594]
[1742386977222,4.60919015,2018.0,2017.8,4.95588]
[1742386977514,5.619,2018.1,2017.9,4.95564]
[1742386977728,5.619,2018.1,2017.7,4.95608]
[1742386977879,5.619,2018.1,2017.9,4.95542]
[1742386978078,5.619,2018.1,2017.8,4.95587]
[1742386978525,4.60919015,2018.0,2017.7,4.95613]
[1742386978894,9.56461015,2018.0,2017.4,4.95687]
[1742386979096,4.60919015,2017.8,2017.4,4.95669]
[1742386979299,4.60919015,2017.8,2017.5,4.95651]
[1742386979699,9.56515015,2017.8,2017.4,4.95669]
[1742386979916,0.7624,2017.7,2017.3,4.95696]
[1742386980227,7.60919015,2018.0,2017.7,4.95613]
[1742386980385,7.60919015,2018.0,2017.1,5.75468]
[1742386980729,4.60919015,2018.0,2017.7,9.91203]
[1742386981025,8.92957502,2018.1,2017.8,4.95568]
[1742386981225,8.92957502,2018.1,2017.9,4.95554]
[1742386981432,8.92957502,2018.1,2017.9,9.91103]
[1742386981587,5.619,2018.1,2018.0,4.9554]
[1742386981788,23.251,2018.2,2018.0,4.95521]
[1742386982111,27.86019015,2018.2,2017.9,5.72011]
[1742386982423,23.251,2018.2,2018.1,4.95515]
[1742386982634,23.251,2018.2,2018.0,4.95535]
[1742386982955,23.251,2018.2,2018.0,9.9106]
[1742386983133,23.251,2018.2,2018.0,4.95525]
[1742386983783,23.251,2018.2,2018.0,9.91048]
[1742386984323,23.251,2018.2,2018.1,4.95515]
[1742386984545,6.12,2018.2,2018.1,6.022648]
[1742386984753,7.60919015,2018.6,2018.4,4.9544]
[1742386984924,17.134,2018.7,2018.4,4.9544]
[1742386985633,17.134,2018.7,2018.3,4.95463]
[1742386985804,17.134,2018.7,2018.3,4.95456]
[1742386986005,8.26763617,2018.6,2018.3,4.95456]
[1742386986218,8.26763617,2018.6,2018.2,4.95489]
[1742386986549,13.22157617,2018.6,2018.2,4.95489]
[1742386986704,8.26763617,2018.6,2018.2,4.95473]
[1742386986908,10.35402015,2018.4,2017.9,5.72007]
[1742386987101,5.39949015,2018.4,2018.0,4.95524]
[1742386987302,15.30858015,2018.4,2017.9,5.72017]
[1742386987544,4.95472,2018.3,2017.9,5.72015]
[1742386987747,4.60919015,2018.2,2017.9,4.9556]
[1742386987910,4.60919015,2018.2,2017.9,9.91107]
[1742386988109,9.56424015,2018.2,2017.7,5.76596]
[1742386988321,4.60919015,2018.0,2017.6,9.91259]
[1742386988522,5.37049015,2018.0,2017.5,5.7699]
[1742386988727,6.3783,2018.0,2017.3,0.7917]
[1742386988923,6.3783,2018.0,2017.6,4.95635]
[1742386989215,4.60919015,2017.9,2017.5,4.95648]
[1742386989443,6.69900517,2017.9,2017.5,9.91299]
[1742386989740,6.69900517,2017.9,2017.4,4.95685]
[1742386989946,4.60919015,2017.7,2017.3,5.7488]
[1742386990106,4.60919015,2017.7,2017.4,4.95678]
[1742386990530,4.60919015,2017.5,2017.3,4.95697]
[1742386990844,9.56534015,2017.7,2017.3,4.95697]
[1742386991048,1.45213002,2017.6,2017.3,4.95697]
[1742386991230,9.91421,2017.3,2016.9,0.7608]
[1742386991406,4.60919015,2017.3,2017.0,4.95774]
[1742386991605,19.97681502,2017.9,2017.3,0.8173]
[1742386991820,4.95603,2017.8,2017.2,4.95713]
[1742386992021,2.95420352,2017.8,2017.4,4.95683]
[1742386992220,4.60919015,2017.7,2017.2,4.95736]
[1742386992536,9.56542015,2017.7,2017.3,4.957]
[1742386992732,4.60919015,2017.5,2017.0,4.95777]
[1742386992941,4.60919015,2017.5,2017.2,4.95732]
[1742386993258,4.60919015,2017.5,2017.2,4.95736]
[1742386993461,7.33717333,2017.5,2017.1,9.91502]
[1742386993764,5.616,2017.6,2017.4,4.95673]
[1742386994124,5.616,2017.6,2017.5,4.95662]
[1742386994462,5.616,2017.6,2017.2,4.95726]
[1742386994637,5.616,2017.6,2017.3,4.95707]
[1742386995030,5.616,2017.6,2017.4,4.95683]
[1742386995357,5.616,2017.6,2017.4,4.95685]
[1742386995768,5.616,2017.6,2017.4,9.91357]
[1742386996061,35.15542517,2017.9,2017.4,9.91341]
[1742386996359,24.58360517,2017.9,2017.5,9.91312]
[1742386996569,23.83300517,2017.9,2017.6,4.95635]
[1742386996740,19.22381502,2017.9,2017.7,4.95601]
[1742386996939,17.134,2017.9,2017.8,4.95589]
[1742387000239,21.74319015,2017.9,2017.6,4.95627]
[1742387001048,22.50069015,2017.9,2017.6,4.95627]
[1742387001654,22.50069015,2017.9,2017.4,5.71506]
[1742387001655,22.50069015,2017.9,2017.4,0.7582]
[1742387001855,7.76758902,2017.8,2017.4,5.71496]
[1742387002054,7.76758902,2017.8,2017.4,10.67163]
[1742387002388,4.95641,2017.6,2017.2,5.78059]
[1742387002677,9.56533015,2017.7,2017.3,4.95695]
[1742387002881,7.76747902,2017.8,2017.2,0.8233]
[1742387003048,2.81156902,2017.8,2017.5,4.95651]
[1742387003469,2.81156902,2017.8,2017.5,4.95649]
[1742387003848,17.8915,2017.9,2017.6,4.95618]
[1742387004047,17.8915,2017.9,2017.7,4.95601]
[1742387004275,17.134,2017.9,2017.7,4.95601]
[1742387004476,17.134,2017.9,2017.8,4.95589]
[1742387005058,10.22319015,2018.2,2017.8,9.91178]
[1742387005251,1.59779902,2018.1,2017.7,0.8021]
[1742387005505,5.75572,2017.9,2017.4,4.95678]
[1742387005682,9.56518015,2017.8,2017.4,4.95678]
[1742387005984,4.95626,2017.7,2017.3,4.9571]
[1742387006282,4.60919015,2017.6,2017.2,4.95729]
[1742387006484,15.17914015,2017.8,2017.4,4.95687]
[1742387006643,2.09350002,2017.7,2017.4,4.9567]
[1742387007109,7.04974002,2017.7,2017.3,4.95704]
[1742387007304,4.95639,2017.6,2017.2,9.91443]
[1742387007472,4.60919015,2017.6,2017.2,4.95718]
[1742387007903,4.60919015,2017.6,2017.1,5.72933]
[1742387008073,1.48436902,2017.5,2017.2,4.95734]
[1742387008404,6.44109902,2017.5,2017.1,4.95748]
[1742387009269,4.60919015,2017.2,2016.8,0.7734]
[1742387009599,15.17906015,2017.4,2017.0,4.95781]
[1742387009764,5.613,2017.4,2017.2,4.95722]
[1742387009968,6.12,2017.6,2017.3,4.95695]
[1742387010165,1.85927902,2017.6,2017.4,4.95684]
[1742387010674,1.85927902,2017.6,2017.4,4.9567]
[1742387010993,9.02760002,2017.7,2017.4,4.9567]
[1742387011182,9.02760002,2017.7,2017.3,4.95706]
[1742387011183,18.59293017,2017.7,2017.3,4.95706]
[1742387011384,13.63679017,2017.7,2017.4,4.95671]
[1742387011770,6.12,2017.7,2017.6,4.95638]
[1742387011966,5.77708,2017.6,2017.3,4.95698]
[1742387012265,4.95673,2017.5,2017.1,4.95753]
[1742387012476,4.95688,2017.4,2017.0,4.95772]
[1742387012676,4.95673,2017.5,2017.1,4.95757]
[1742387012896,7.10303002,2017.5,2017.1,4.95757]
[1742387013076,7.10303002,2017.5,2017.0,4.9578]
[1742387013077,9.56619015,2017.4,2017.0,4.9578]
[1742387013284,7.10303002,2017.5,2017.1,4.95757]
[1742387013499,7.10303002,2017.5,2017.0,4.9578]
[1742387013669,7.10303002,2017.5,2016.8,5.75173]
[1742387013670,4.95724,2017.3,2016.9,4.95798]
[1742387014180,0.8223,2017.2,2016.9,4.95798]
[1742387014596,0.8223,2017.2,2016.9,9.91591]
[1742387014909,0.8223,2017.2,2016.6,0.8119]
[1742387014910,7.03163417,2017.2,2016.6,0.8119]
[1742387015108,7.03163417,2017.2,2016.8,4.95826]
[1742387015412,2.42244402,2017.2,2016.8,4.95826]
[1742387015612,2.42244402,2017.2,2016.9,4.95802]
[1742387015911,2.42244402,2017.2,2016.9,4.95806]
[1742387016509,7.37982402,2017.2,2016.8,4.95832]
[1742387016712,1.2337044,2017.1,2016.6,0.8119]
[1742387017005,1.2337044,2017.1,2016.5,0.1191877]
[1742387017210,1.2337044,2017.1,2016.8,4.95822]
[1742387017410,1.2337044,2017.1,2016.9,4.95798]
[1742387017584,22.52599015,2017.4,2016.8,0.807]
[1742387017791,33.09492015,2017.4,2016.9,4.95808]
[1742387017975,33.09492015,2017.4,2016.9,9.91604]
[1742387018315,9.56664015,2017.2,2016.8,4.95832]
[1742387018500,0.95666402,2017.1,2016.8,9.9165]
[1742387018821,0.95666402,2017.1,2016.8,4.95818]
[1742387018996,4.95724,2017.3,2016.8,4.95818]
[1742387018997,33.09494015,2017.4,2016.9,4.95806]
[1742387019315,28.13799015,2017.4,2017.0,4.95769]
[1742387019486,17.9168,2017.4,2017.1,4.9575]
[1742387019682,23.5288,2017.4,2017.1,4.9575]
[1742387020304,28.13799015,2017.4,2016.9,4.95808]
[1742387020610,8.48134802,2017.3,2016.9,4.95795]
[1742387020808,3.52409802,2017.3,2016.9,4.95795]
[1742387021195,4.1643581,2017.2,2016.9,4.95795]
[1742387021581,4.1643581,2017.2,2016.9,9.91591]
[1742387021784,4.1643581,2017.2,2016.9,4.95795]
[1742387022011,28.48581,2017.4,2016.9,4.95795]
[1742387022012,27.6931581,2017.4,2016.9,0.495795]
[1742387022310,27.6931581,2017.4,2017.2,4.9573]
[1742387022475,4.9411581,2017.4,2017.2,4.9572]
[1742387022682,4.1643581,2017.4,2017.2,4.9572]
[1742387023194,6.4397,2017.6,2017.3,4.95712]
[1742387023399,10.6040581,2017.6,2017.2,4.9572]
[1742387023602,14.82394612,2017.6,2017.2,4.9572]
[1742387023782,4.1643581,2017.4,2017.0,0.8175]
[1742387023987,9.1212381,2017.4,2017.0,4.95773]
[1742387024187,0.7542,2017.1,2016.7,4.9584]
[1742387024512,0.7542,2017.1,2016.8,9.9163]
[1742387024707,0.7542,2017.1,2016.8,4.95812]
[1742387024924,0.7542,2017.1,2016.7,4.95857]
[1742387024925,4.1643581,2017.0,2016.6,9.9175]
[1742387025278,4.1643581,2017.0,2016.7,4.95854]
[1742387025787,4.1643581,2017.0,2016.6,4.95867]
[1742387026286,7.19525681,2017.1,2016.8,4.9582]
[1742387026287,0.7542,2017.1,2016.8,4.9582]
[1742387026690,4.1643581,2017.0,2016.7,4.95857]
[1742387026993,4.1643581,2017.0,2016.6,9.91751]
[1742387027206,4.1643581,2016.8,2016.5,0.1191877]
[1742387027481,4.1643581,2016.8,2016.5,5.0781677]
[1742387027678,4.1643581,2016.8,2016.5,5.0781377]
[1742387028006,0.8145,2016.7,2016.5,5.0781377]
[1742387028176,4.1643581,2016.6,2016.5,0.1191877]
[1742387028374,0.8145,2016.7,2016.5,0.1191877]
[1742387028618,4.1643581,2016.7,2016.5,5.0782277]
[1742387028785,4.1643581,2016.7,2016.5,0.1191877]
[1742387029313,4.1643581,2016.7,2016.5,5.0781877]
[1742387029517,4.1643581,2016.7,2016.6,4.95884]
[1742387029704,5.61,2016.8,2016.6,4.9587]
[1742387029909,21.3063581,2016.9,2016.7,4.95859]
[1742387030306,22.12610107,2016.9,2016.6,4.95883]
[1742387030510,22.12610107,2016.9,2016.5,5.0781277]
[1742387030717,4.1643581,2016.7,2016.6,4.95884]
[1742387030917,4.1643581,2016.7,2016.5,10.0370377]
[1742387031124,4.1643581,2016.7,2016.6,4.95884]
[1742387031290,21.3063581,2016.9,2016.7,4.95848]
[1742387031695,24.88037631,2016.9,2016.6,4.95868]
[1742387032413,4.1643581,2016.7,2016.6,4.95868]
[1742387033530,21.3063581,2016.9,2016.7,4.95843]
[1742387033734,17.142,2016.9,2016.8,4.95834]
[1742387033917,17.142,2016.9,2016.8,5.77424]
[1742387034095,21.3063581,2016.9,2016.8,5.77424]
[1742387034293,21.3063581,2016.9,2016.8,4.95834]
[1742387034928,17.142,2016.9,2016.8,4.95834]
[1742387035336,21.3063581,2016.9,2016.8,4.95834]
[1742387035607,24.18889391,2016.9,2016.5,0.1191877]
[1742387035830,4.1643581,2016.7,2016.6,4.95874]
[1742387036234,4.1643581,2016.7,2016.5,0.1191877]
[1742387036404,5.73364,2016.6,2016.5,0.1191877]
[1742387036610,0.7748,2016.6,2016.5,0.1191877]
[1742387036824,2.46295662,2016.6,2016.5,0.1191877]
[1742387037026,4.1643581,2016.7,2016.5,5.0782677]
[1742387037203,4.1643581,2016.7,2016.5,0.1191877]
[1742387038004,9.1230381,2016.7,2016.5,0.1191877]
[1742387038243,4.1643581,2016.7,2016.5,0.1191877]
[1742387039234,4.1643581,2016.6,2016.5,0.1191877]
[1742387039618,6.48784454,2016.6,2016.5,0.1191877]
[1742387041007,4.1643581,2016.6,2016.5,0.1191877]
[1742387041207,4.1643581,2016.6,2016.5,5.0782677]
[1742387041653,4.1643581,2016.6,2016.5,5.0282677]
[1742387042332,6.9195,2017.1,2016.6,4.95881]
[1742387042510,4.1643581,2016.9,2016.7,4.95848]
[1742387042709,4.1643581,2016.9,2016.8,4.95834]
[1742387042943,4.1643581,2016.9,2016.7,4.95848]
[1742387043151,9.1224881,2016.9,2016.5,5.0281777]
[1742387043312,4.1643581,2016.7,2016.5,5.0281777]
[1742387043642,4.9284581,2016.7,2016.5,5.0281477]
[1742387044014,4.9284581,2016.7,2016.5,0.0691877]
[1742387044204,4.9284581,2016.7,2016.5,5.0281877]
[1742387044411,4.9284581,2016.7,2016.5,0.0691877]
[1742387045012,6.45066053,2016.7,2016.5,0.0691877]
[1742387045746,11.40935053,2016.7,2016.5,0.0691877]
[1742387045933,4.95884,2016.6,2016.5,0.0691877]
[1742387046246,5.607,2016.6,2016.5,0.0691877]
[1742387046807,21.3093581,2016.7,2016.5,5.0282677]
[1742387047045,17.145,2016.7,2016.6,4.95884]
[1742387047822,21.3093581,2016.7,2016.5,0.0691877]
[1742387048023,23.93611791,2016.7,2016.5,0.0691877]
[1742387050116,28.89478791,2016.7,2016.5,0.0691877]
[1742387050318,0.8262,2016.6,2016.5,0.0691877]
[1742387050527,11.39104,2016.6,2016.5,0.0691877]
[1742387050911,14.34034,2016.6,2016.5,0.0691877]
[1742387051116,5.816937,2015.8,2015.4,0.7872]
[1742387051432,5.816937,2015.8,2015.4,4.9617]
[1742387051433,4.1643581,2015.6,2015.4,4.9617]
[1742387051635,4.1643581,2015.6,2015.5,4.96654]
[1742387051859,4.1643581,2015.6,2015.5,0.005]
[1742387052467,5.606,2015.7,2015.6,4.9613]
[1742387052667,17.146,2015.8,2015.6,4.9613]
[1742387052668,4.1643581,2016.2,2015.6,1.29613]
[1742387052854,4.1643581,2016.0,2015.7,4.96084]
[1742387053062,4.1643581,2016.0,2015.6,0.7995]
[1742387053254,0.7551,2016.3,2015.7,4.96082]
[1742387053255,9.92034,2016.1,2015.7,4.96082]
[1742387053431,4.61848424,2016.0,2015.7,4.96082]
[1742387053638,9.57894424,2016.0,2015.6,5.76064]
[1742387053839,0.95789442,2015.9,2015.6,4.96114]
[1742387054039,0.95789442,2015.9,2015.7,4.96103]
[1742387054235,9.57938424,2015.8,2015.5,0.005]
[1742387054540,0.95789442,2015.9,2015.5,4.96645]
[1742387054730,0.95789442,2015.9,2015.5,0.005]
[1742387054731,9.57947424,2015.8,2015.5,0.005]
[1742387054934,1.05373687,2015.7,2015.5,0.005]
[1742387055270,7.46933687,2015.7,2015.5,0.005]
[1742387055671,5.606,2015.7,2015.6,4.9613]
[1742387055846,4.61848424,2015.8,2015.5,0.005]
[1742387056170,4.61848424,2015.8,2015.4,9.92339]
[1742387056368,4.61848424,2015.8,2015.4,9.92325]
[1742387056567,5.42808424,2015.9,2015.5,4.96134]
[1742387056773,10.22348424,2016.0,2015.6,4.9611]
[1742387056975,0.8276,2015.7,2015.5,4.9614]
[1742387057148,0.8276,2015.7,2015.5,4.96139]
[1742387057534,4.61848424,2016.1,2015.4,0.8052]
[1742387057871,4.61848424,2016.4,2016.1,4.95996]
[1742387058236,23.5786,2016.5,2016.2,4.89965]
[1742387058467,3.93036206,2016.4,2016.3,4.95955]
[1742387058676,22.751,2016.5,2016.4,4.95933]
[1742387058847,22.751,2016.5,2016.3,4.95953]
[1742387059237,22.751,2016.5,2016.1,5.72065]
[1742387059561,0.765,2016.3,2015.8,4.96066]
[1742387059739,4.61848424,2016.2,2015.8,4.9608]
[1742387060072,4.61848424,2016.0,2015.6,4.96128]
[1742387060236,10.33627424,2016.0,2015.6,4.96128]
[1742387060439,5.37588424,2016.0,2015.6,9.92241]
[1742387060773,10.33632424,2016.0,2015.5,5.76123]
[1742387060975,4.96066,2015.9,2015.3,5.75592]
[1742387061161,1.03365442,2015.8,2015.5,4.96141]
[1742387062242,5.604,2015.9,2015.5,4.96136]
[1742387062687,5.604,2015.9,2015.5,4.96143]
[1742387062840,5.604,2015.9,2015.2,4.96227]
[1742387062841,9.57987424,2015.6,2015.2,4.96209]
[1742387063041,0.7772,2015.5,2015.2,4.96209]
[1742387063437,0.7772,2015.7,2015.3,4.96184]
[1742387063764,5.73833,2015.7,2015.3,4.96184]
[1742387064080,4.96282,2015.0,2014.6,4.96358]
[1742387064264,4.61848424,2015.1,2014.8,4.96325]
[1742387064575,10.22248424,2015.1,2014.8,4.96325]
[1742387064945,4.96295,2015.0,2014.6,4.96367]
[1742387065253,4.96285,2015.0,2014.6,4.96367]
[1742387065451,5.604,2015.0,2014.6,9.92727]
[1742387065655,5.604,2015.0,2014.6,4.9636]
[1742387065656,8.97237283,2015.0,2014.6,4.9636]
[1742387065878,13.93519283,2015.0,2014.6,4.9636]
[1742387066048,4.61848424,2014.9,2014.6,4.9636]
[1742387066248,5.42208424,2014.7,2014.5,5.0881877]
[1742387066447,5.37708424,2014.9,2014.5,0.1241877]
[1742387066787,11.81194711,2014.9,2014.5,0.1241877]
[1742387066985,4.61848424,2014.7,2014.5,0.1241877]
[1742387067354,4.61848424,2014.7,2014.5,5.0881077]
[1742387067554,0.7586,2014.9,2014.5,0.1241877]
[1742387067853,9.33964442,2015.0,2014.7,4.96333]
[1742387068182,9.33964442,2015.0,2014.7,4.96348]
[1742387068354,21.77048424,2015.2,2014.8,4.96303]
[1742387068561,27.37448424,2015.2,2014.9,4.96291]
[1742387068963,1.71158052,2015.3,2014.6,0.7812]
[1742387069167,6.3618,2015.5,2015.2,4.96218]
[1742387069365,4.61848424,2015.3,2014.5,0.1241877]
[1742387069592,4.61848424,2015.3,2014.9,4.96289]
[1742387069753,1.09802842,2015.4,2014.7,0.7954]
[1742387069964,4.61848424,2015.3,2014.7,5.75889]
[1742387070181,9.58072424,2015.3,2014.9,4.96291]
[1742387070379,1.06787527,2015.2,2014.9,4.96291]
[1742387070656,6.03018527,2015.2,2014.8,4.96325]
[1742387070858,11.63418527,2015.2,2014.8,4.96325]
[1742387071055,6.67187527,2015.2,2014.9,4.9629]
[1742387071294,6.67187527,2015.2,2014.8,4.96314]
[1742387071463,7.00484119,2015.1,2014.7,4.96341]
[1742387071654,5.604,2015.1,2014.8,4.96307]
[1742387071854,5.604,2015.1,2014.9,4.96285]
[1742387072080,5.68635951,2015.2,2015.0,4.96277]
[1742387072284,6.4179,2015.5,2015.3,4.96203]
[1742387072505,22.11813,2015.7,2015.4,4.9617]
[1742387072506,17.157,2015.7,2015.4,4.9617]
[1742387072658,21.02008142,2015.7,2015.4,4.9617]
[1742387072854,4.61848424,2015.6,2015.3,0.7511]
[1742387073060,9.57978424,2015.6,2015.1,4.96243]
[1742387073259,9.57978424,2015.6,2015.1,4.96241]
[1742387073564,4.61848424,2015.4,2015.1,4.96238]
[1742387073789,10.61826666,2015.4,2014.9,0.793]
[1742387074093,11.26037666,2015.4,2015.0,4.96268]
[1742387074298,11.26037666,2015.4,2015.0,9.9253]
[1742387074498,7.217844,2015.0,2014.6,0.7796]
[1742387074702,4.61848424,2015.2,2014.8,4.9631]
[1742387074898,7.23315691,2015.2,2014.8,4.9631]
[1742387075199,4.61848424,2015.0,2014.6,0.7796]
[1742387075377,7.614982,2015.2,2014.7,4.9635]
[1742387075580,12.577292,2015.2,2014.8,4.96311]
[1742387075900,7.23315691,2015.2,2014.9,4.96291]
[1742387076262,7.23315691,2015.2,2014.6,5.74334]
[1742387076582,10.22248424,2015.4,2015.1,9.92468]
[1742387076770,2.323972,2015.1,2014.9,4.96289]
[1742387076970,4.61848424,2015.2,2015.0,4.96277]
[1742387077597,10.22248424,2015.4,2015.1,4.96253]
[1742387077768,10.22248424,2015.4,2015.1,4.96245]
[1742387077966,11.85724657,2015.4,2015.2,4.96226]
[1742387078167,4.61848424,2015.4,2015.2,4.96206]
[1742387078714,4.61848424,2015.4,2014.9,4.96302]
[1742387078715,9.58029424,2015.4,2014.9,0.7877]
[1742387078869,4.61848424,2015.2,2015.0,4.96268]
[1742387079680,4.61848424,2015.2,2014.5,1.13701592]
[1742387079681,0.8217,2015.1,2014.8,4.96327]
[1742387079899,10.68333266,2015.2,2014.9,4.96294]
[1742387080203,15.64572266,2015.2,2014.8,4.96326]
[1742387080410,0.8005,2014.9,2014.6,4.96366]
[1742387080708,4.61848424,2014.8,2014.6,4.96365]
[1742387081006,15.18480424,2014.8,2014.5,0.1241877]
[1742387081179,16.22299566,2014.8,2014.5,0.1241877]
[1742387081909,4.61848424,2014.6,2014.5,0.1241877]
[1742387082081,11.25967566,2014.8,2014.5,5.0881977]
[1742387082408,4.61848424,2014.7,2014.6,4.96367]
[1742387082707,21.77748424,2014.9,2014.6,4.96373]
[1742387082918,21.77748424,2014.9,2014.7,4.9635]
[1742387083210,21.77748424,2014.9,2014.5,10.0520977]
[1742387083410,27.10594095,2014.9,2014.5,5.0880977]
[1742387083579,1.93424996,2014.8,2014.5,0.1241877]
[1742387083779,4.61848424,2014.7,2014.5,0.1241877]
[1742387084287,4.61848424,2014.7,2014.5,5.0881677]
[1742387084623,5.39808424,2014.7,2014.5,10.0520477]
[1742387084795,10.36169424,2014.7,2014.5,0.1241877]
[1742387085000,21.77748424,2014.9,2014.6,4.96354]
[1742387085179,9.58206424,2014.7,2014.5,0.1241877]
[1742387085581,10.36166424,2014.7,2014.5,0.1241877]
[1742387085918,10.36166424,2014.7,2014.5,5.0881877]
[1742387085919,5.39808424,2014.7,2014.5,5.0881877]
[1742387086114,8.66886995,2014.7,2014.5,0.1241877]
[1742387086481,13.63246995,2014.7,2014.5,0.1241877]
[1742387087017,4.96376,2014.6,2014.5,0.1241877]
[1742387087186,13.56576,2014.6,2014.5,0.1241877]
[1742387087394,14.94786,2014.6,2014.5,0.1241877]
[1742387087603,18.224264,2014.6,2014.5,0.1241877]
[1742387087803,24.86256928,2014.6,2014.5,0.1241877]
[1742387088004,24.86256928,2014.6,2012.6,0.7616]
[1742387088005,0.7602,2013.8,2012.6,0.7616]
[1742387088176,4.61848424,2013.4,2012.7,0.7616]
[1742387088379,4.61848424,2013.6,2013.1,0.005]
[1742387088589,23.281,2013.9,2013.5,4.96644]
[1742387088789,4.61848424,2013.8,2013.2,0.7616]
[1742387089010,4.61848424,2013.6,2013.4,4.96653]
[1742387089212,4.61848424,2013.6,2013.2,0.7616]
[1742387089213,4.61848424,2013.6,2013.3,4.96696]
[1742387089420,4.61848424,2013.6,2013.3,4.9668]
[1742387089619,0.8079,2013.7,2013.4,4.96661]
[1742387089998,0.8079,2013.7,2013.3,4.96684]
[1742387089999,4.61848424,2013.6,2013.2,5.72873]
[1742387090194,4.61848424,2013.6,2013.3,4.9669]
[1742387090425,5.34215914,2013.8,2013.5,4.96647]
[1742387090426,4.99491338,2013.8,2013.5,4.96647]
[1742387090615,23.281,2013.9,2013.3,4.96694]
[1742387090814,4.61848424,2014.2,2013.6,0.8171]
[1742387091013,4.61848424,2014.2,2013.9,4.96533]
[1742387091323,4.61848424,2014.2,2013.8,4.96573]
[1742387091527,4.61848424,2014.1,2014.0,4.96524]
[1742387091732,6.9111,2014.4,2013.7,4.96598]
[1742387092031,10.22148424,2014.5,2013.6,0.8171]
[1742387092032,10.22148424,2014.5,2014.1,4.96489]
[1742387092227,13.03708266,2014.5,2014.2,4.96465]
[1742387092528,4.61848424,2014.3,2013.9,4.96538]
[1742387092741,5.603,2014.4,2014.2,4.96456]
[1742387092940,21.78248424,2014.7,2014.5,4.96385]
[1742387093321,21.78248424,2014.7,2014.5,4.96376]
[1742387093521,17.164,2014.7,2014.6,4.96376]
[1742387094324,21.78248424,2014.7,2014.2,5.74762]
[1742387094509,21.78248424,2014.7,2014.4,4.96423]
[1742387094694,17.164,2014.7,2014.5,4.96393]
[1742387094899,20.51454842,2014.7,2014.4,4.96403]
[1742387095128,21.78248424,2014.7,2014.4,4.96403]
[1742387096037,21.78248424,2014.7,2014.4,9.92813]
[1742387096226,21.78248424,2014.7,2014.5,4.96399]
[1742387096423,21.78248424,2014.7,2014.4,9.92812]
[1742387096629,21.78248424,2014.7,2014.5,4.96399]
[1742387096929,17.164,2014.7,2014.4,4.96403]
[1742387097115,17.164,2014.7,2014.3,4.96434]
[1742387097116,21.78248424,2014.7,2014.3,4.96434]
[1742387097306,25.62923666,2014.7,2014.3,4.96434]
[1742387097497,25.62923666,2014.7,2014.4,4.96401]
[1742387097837,21.78248424,2014.7,2014.5,4.96398]
[1742387097999,17.164,2014.7,2014.5,4.96398]
[1742387098201,17.164,2014.7,2014.4,4.96401]